[Event "WYCC U14 Open 2019"]
[Site "Mumbai"]
[Date "2019.10.06"]
[Round "6.9"]
[White "Flores Quillas, Diego Saul Rodri"]
[Black "Madaminov, Mukhiddin"]
[Result "1/2-1/2"]
[ECO "C12"]
[WhiteElo "2164"]
[BlackElo "2045"]
[Annotator "ChessBase"]
[PlyCount "118"]
[EventDate "2019.10.02"]
[EventType "swiss"]
[EventCountry "IND"]
[SourceTitle "playchess.com"]
[Source "ChessBase"]
[SourceQuality "1"]
[TimeControl "40/5400+30:1800+30"]

1. e4 e6 2. d4 d5 3. Nc3 Nf6 4. Bg5 Bb4 5. e5 h6 6. Bd2 Bxc3 7. bxc3 Ne4 8. Qg4 g6 9. Bd3 Nxd2 10. Kxd2 c5 11. Nf3 Qe7 12. Qf4 Bd7 13. a4 Bc6 14. h4 Nd7 15. Rhb1 c4 16. Be2 O-O-O 17. a5 Rdf8 18. Rf1 f5 19. exf6 Nxf6 20. Kc1 Nd7 21. Qe3 Qf6 22. g3 a6 23. Kb2 Re8 24. Rfe1 Qg7 25. Bf1 Rhf8 26. Bg2 Rf7 27. Re2 Qf8 28. Ne5 Nxe5 29. Qxe5 Rf5 30. Qe3 e5 31. Bh3 exd4 32. Qf3 dxc3+ 33. Kc1 d4 34. Rxe8+ Qxe8 35. Bxf5+ gxf5 36. Qxf5+ Qd7 37. Qf8+ Qe8 38. Qf5+ Qd7 39. Qf8+ Kc7 40. Qxh6 Qd5 41. Qf4+ Kc8 42. Qf8+ Kd7 43. Qg7+ Kd6 44. f3 Qe5 45. Qxe5+ Kxe5 46. h5 Bxf3 47. h6 Kf6 48. Ra4 Be2 49. g4 d3 50. cxd3 cxd3 51. Rd4 Kg6 52. g5 Kh7 53. Rd7+ Kg6 54. h7 d2+ 55. Kb1 d1=Q+ 56. Rxd1 c2+ 57. Kxc2 Bxd1+ 58. Kxd1 Kxh7 59. Kd2 Kg6 1/2-1/2

[Event "WYCC U14 Open 2019"]
[Site "Mumbai"]
[Date "2019.10.06"]
[Round "6.10"]
[White "Nikhil Magizhnan"]
[Black "Vo, Pham Thien Phuc"]
[Result "0-1"]
[ECO "B76"]
[WhiteElo "2160"]
[BlackElo "1807"]
[Annotator "ChessBase"]
[PlyCount "92"]
[EventDate "2019.10.02"]
[EventType "swiss"]
[EventCountry "IND"]
[SourceTitle "playchess.com"]
[Source "ChessBase"]
[SourceQuality "1"]
[TimeControl "40/5400+30:1800+30"]

1. e4 {[%emt 0:00:00]} c5 {[%emt 0:00:00]} 2. Nf3 {[%emt 0:00:00]} d6 {[%emt 0:00:00]} 3. d4 {[%emt 0:00:10]} cxd4 {[%emt 0:00:00]} 4. Nxd4 {[%emt 0:00:24]} Nf6 {[%emt 0:00:00]} 5. Nc3 {[%emt 0:00:11]} g6 {[%emt 0:00:02]} 6. Be3 {[%emt 0:00:27]} Bg7 {[%emt 0:00:06]} 7. f3 {[%emt 0:00:06]} Nc6 {[%emt 0:00:13]} 8. Qd2 {[%emt 0:00:18]} O-O {[%emt 0:00:14]} 9. O-O-O {[%emt 0:00:48]} Nxd4 {[%emt 0:00:10]} 10. Bxd4 {[%emt 0:00:02]} Be6 {[%emt 0:00:06]} 11. Kb1 {[%emt 0:00:20]} Qc7 {[%emt 0:00:11]} 12. g4 {[%emt 0:00:29]} Rfc8 {[%emt 0:00:08]} 13. h4 {[%emt 0:00:26]} Qa5 {[%emt 0:00:04]} 14. a3 {[%emt 0:00:30]} h5 {[%emt 0:09:33]} 15. g5 {[%emt 0:04:29]} Ne8 {[%emt 0:01:38]} 16. Be2 {[%emt 0:12:16]} Bc4 {[%emt 0:16:11]} 17. Bxc4 {[%emt 0:03:59]} Rxc4 {[%emt 0:00:08]} 18. Bxg7 {[%emt 0:00:20]} Kxg7 {[%emt 0:07:15]} 19. f4 {[%emt 0:16:40]} Rac8 {[%emt 0:06:55]} 20. Rh3 {[%emt 0:05:07]} Nc7 {[%emt 0:06:49]} 21. Re3 {[%emt 0:33:44]} Ne6 {[%emt 0:09:57]} 22. Qf2 {[%emt 0:06:22]} Nd4 {[%emt 0:16:19]} 23. f5 {[%emt 0:11:52]} gxf5 {[%emt 0:02:08]} 24. Rxd4 {[%emt 0:01:27]} Rxd4 {[%emt 0:00:07]} 25. exf5 {[%emt 0:00:13]} Kf8 {[%emt 0:10:33]} 26. f6 {[%emt 0:01:18]} e6 {[%emt 0:00:17]} 27. Rxe6 {[%emt 0:00:33]} Qb6 {[%emt 0:04:46]} 28. Re3 {[%emt 0:00:28]} Qc5 {[%emt 0:07:15]} 29. Qe1 {[%emt 0:00:41]} Rg4 {[%emt 0:00:32]} 30. Qf2 {[%emt 0:00:41]} Re8 {[%emt 0:01:38]} 31. Rxe8+ {[%emt 0:00:06]} Kxe8 {[%emt 0:00:01]} 32. Qe2+ {[%emt 0:00:11]} Qe5 {[%emt 0:00:01]} 33. Qf2 {[%emt 0:00:51]} b6 {[%emt 0:00:28]} 34. Qf3 {[%emt 0:00:18]} d5 {[%emt 0:00:43]} 35. Nxd5 {[%emt 0:00:25]} Qe4 {[%emt 0:00:22]} 36. Qb3 {[%emt 0:01:00]} Qc4 {[%emt 0:00:26]} 37. Qe3+ {[%emt 0:00:16]} Re4 {[%emt 0:00:31]} 38. Qd2 {[%emt 0:00:07]} Qd4 {[%emt 0:00:14]} 39. Qxd4 {[%emt 0:01:13]} Rxd4 {[%emt 0:00:01]} 40. c4 {[%emt 0:00:39]} Rxc4 {[%emt 0:01:11]} 41. Ne3 {[%emt 0:01:46]} Rxh4 {[%emt 0:00:06]} 42. Ka2 Rg4 {[%emt 0:00:31]} 43. Nxg4 {[%emt 0:02:07]} hxg4 {[%emt 0:00:02]} 44. Kb3 {[%emt 0:00:03]} g3 {[%emt 0:00:05]} 45. g6 {[%emt 0:00:13]} fxg6 {[%emt 0:00:06]} 46. f7+ {[%emt 0:00:07]} Kxf7 {[%emt 0:00:03]} 0-1

[Event "WYCC U14 Open 2019"]
[Site "Mumbai"]
[Date "2019.10.06"]
[Round "6.11"]
[White "Luczak, Filip"]
[Black "Dhrupad Kashyap"]
[Result "1-0"]
[ECO "A61"]
[WhiteElo "2136"]
[BlackElo "2000"]
[Annotator "ChessBase"]
[PlyCount "123"]
[EventDate "2019.10.02"]
[EventType "swiss"]
[EventCountry "IND"]
[SourceTitle "playchess.com"]
[Source "ChessBase"]
[SourceQuality "1"]
[TimeControl "40/5400+30:1800+30"]

1. d4 {[%emt 0:00:00]} Nf6 {[%emt 0:00:09]} 2. c4 {[%emt 0:00:00]} c5 {[%emt 0:01:20]} 3. d5 {[%emt 0:00:00]} e6 {[%emt 0:00:58]} 4. Nc3 {[%emt 0:00:00]} exd5 {[%emt 0:00:33]} 5. cxd5 {[%emt 0:00:00]} d6 {[%emt 0:00:58]} 6. Nf3 {[%emt 0:00:08]} g6 {[%emt 0:00:56]} 7. Bf4 {[%emt 0:00:07]} a6 {[%emt 0:01:05]} 8. a4 {[%emt 0:00:05]} Bg7 {[%emt 0:00:05]} 9. h3 {[%emt 0:00:08]} O-O {[%emt 0:02:35]} 10. e3 {[%emt 0:02:42]} Qe7 {[%emt 0:02:03]} 11. Be2 {[%emt 0:02:10]} Nbd7 {[%emt 0:02:21]} 12. Nd2 {[%emt 0:03:47]} Ne8 {[%emt 0:03:25]} 13. Nc4 {[%emt 0:06:28]} b6 {[%emt 0:09:41]} 14. Ra3 {[%emt 0:06:08]} g5 {[%emt 0:05:09]} 15. Bh2 {[%emt 0:01:09]} f5 {[%emt 0:00:27]} 16. O-O {[%emt 0:07:44]} Rb8 {[%emt 0:10:41]} 17. Rb3 {[%emt 0:06:32]} f4 {[%emt 0:09:50]} 18. exf4 {[%emt 0:05:05]} gxf4 {[%emt 0:00:20]} 19. Bg4 {[%emt 0:01:45]} Ne5 {[%emt 0:18:53]} 20. Nxe5 {[%emt 0:05:03]} Bxe5 {[%emt 0:01:10]} 21. Bxc8 {[%emt 0:01:53]} Rxc8 {[%emt 0:02:24]} 22. Qg4+ {[%emt 0:00:28]} Ng7 {[%emt 0:00:13]} 23. Rxb6 {[%emt 0:00:58]} Rb8 {[%emt 0:00:50]} 24. Rxb8 {[%emt 0:06:20]} Rxb8 {[%emt 0:00:05]} 25. Bxf4 {[%emt 0:03:08]} Bd4 {[%emt 0:03:47]} 26. Bh2 {[%emt 0:00:00]} Be5 {[%emt 0:00:30]} 27. Bf4 {[%emt 0:01:00]} Bd4 {[%emt 0:00:30]} 28. Qe2 {[%emt 0:12:21]} Be5 {[%emt 0:00:30]} 29. Qg4 {[%emt 0:00:00]} Bd4 {[%emt 0:00:30]} 30. Qe2 {[%emt 0:00:00]} Qf6 {[%emt 0:03:11]} 31. Qg4 {[%emt 0:00:00]} Qe7 {[%emt 0:00:00]} 32. Qe2 {[%emt 0:02:07]} Qf6 {[%emt 0:01:00]} 33. Be3 {[%emt 0:04:03]} Nf5 {[%emt 0:01:30]} 34. Bxd4 {[%emt 0:02:10]} Nxd4 {[%emt 0:00:27]} 35. Qg4+ {[%emt 0:02:41]} Qg6 {[%emt 0:01:50]} 36. Qxg6+ {[%emt 0:01:26]} hxg6 {[%emt 0:00:02]} 37. Ne4 {[%emt 0:00:51]} Rxb2 {[%emt 0:01:06]} 38. Nxd6 {[%emt 0:01:27]} Ne2+ {[%emt 0:01:46]} 39. Kh2 {[%emt 0:01:21]} Nc3 {[%emt 0:03:25]} 40. Kg1 {[%emt 0:00:00]} Ne2+ {[%emt 0:00:00]} 41. Kh2 {[%emt 0:31:00]} Nc3 {[%emt 0:31:00]} 42. Rc1 {[%emt 0:06:38]} Nxa4 {[%emt 0:03:01]} 43. Ne4 {[%emt 0:00:47]} Rb6 {[%emt 0:02:01]} 44. Nxc5 {[%emt 0:01:29]} Nxc5 {[%emt 0:00:06]} 45. Rxc5 {[%emt 0:00:03]} Kf7 {[%emt 0:00:11]} 46. Kg3 {[%emt 0:01:30]} Ke7 {[%emt 0:00:47]} 47. Kf4 {[%emt 0:03:37]} Rb2 {[%emt 0:00:47]} 48. Ke3 {[%emt 0:01:11]} Ra2 {[%emt 0:00:45]} 49. Rc6 {[%emt 0:00:43]} Kf7 {[%emt 0:00:45]} 50. g3 {[%emt 0:00:41]} a5 {[%emt 0:00:04]} 51. Ra6 {[%emt 0:00:56]} a4 {[%emt 0:01:06]} 52. h4 {[%emt 0:00:30]} a3 {[%emt 0:01:42]} 53. Kf3 {[%emt 0:00:27]} Ra1 {[%emt 0:00:50]} 54. Kg4 {[%emt 0:00:30]} a2 {[%emt 0:00:16]} 55. f3 {[%emt 0:00:50]} Ke7 {[%emt 0:00:11]} 56. Kf4 {[%emt 0:00:42]} Kd7 {[%emt 0:01:52]} 57. g4 {[%emt 0:00:40]} Ke7 {[%emt 0:00:40]} 58. Kg5 {[%emt 0:00:30]} Kf7 {[%emt 0:00:05]} 59. Ra7+ {[%emt 0:00:05]} Kf8 {[%emt 0:00:42]} 60. Kf6 {[%emt 0:00:42]} Ke8 {[%emt 0:00:17]} 61. Kxg6 {[%emt 0:00:07]} Rd1 {[%emt 0:01:02]} 62. Rxa2 {[%emt 0:00:12]} 1-0

[Event "WYCC U14 Open 2019"]
[Site "Mumbai"]
[Date "2019.10.06"]
[Round "6.12"]
[White "Jain Kashish Manoj"]
[Black "Colbow, Collin"]
[Result "0-1"]
[ECO "A05"]
[WhiteElo "1930"]
[BlackElo "2148"]
[Annotator "ChessBase"]
[PlyCount "96"]
[EventDate "2019.10.02"]
[EventType "swiss"]
[EventCountry "IND"]
[SourceTitle "playchess.com"]
[Source "ChessBase"]
[SourceQuality "1"]
[TimeControl "40/5400+30:1800+30"]

1. Nf3 {[%emt 0:00:00]} Nf6 {[%emt 0:00:00]} 2. g3 {[%emt 0:00:00]} b5 {[%emt 0:00:10]} 3. Bg2 {[%emt 0:00:00]} Bb7 {[%emt 0:00:07]} 4. O-O {[%emt 0:00:12]} e6 {[%emt 0:00:09]} 5. d3 {[%emt 0:00:29]} Be7 {[%emt 0:00:34]} 6. e4 {[%emt 0:01:50]} d6 {[%emt 0:00:05]} 7. a4 {[%emt 0:13:16]} b4 {[%emt 0:03:46]} 8. Nbd2 {[%emt 0:02:55]} c5 {[%emt 0:03:09]} 9. Ne1 {[%emt 0:08:21]} Qc7 {[%emt 0:07:07]} 10. f4 {[%emt 0:01:50]} Nc6 {[%emt 0:01:32]} 11. Nef3 {[%emt 0:07:07]} O-O {[%emt 0:03:26]} 12. b3 {[%emt 0:04:55]} Ng4 {[%emt 0:05:10]} 13. Qe1 {[%emt 0:07:41]} Bf6 {[%emt 0:04:30]} 14. Ra2 {[%emt 0:01:47]} Bc3 {[%emt 0:03:56]} 15. h3 {[%emt 0:02:35]} Nf6 {[%emt 0:03:34]} 16. g4 {[%emt 0:02:33]} d5 {[%emt 0:02:42]} 17. e5 {[%emt 0:00:34]} Nd7 {[%emt 0:01:00]} 18. Qg3 {[%emt 0:05:24]} f6 {[%emt 0:03:18]} 19. exf6 {[%emt 0:00:26]} Nxf6 {[%emt 0:06:15]} 20. Nb1 {[%emt 0:05:32]} Rae8 {[%emt 0:01:25]} 21. Nxc3 {[%emt 0:04:37]} bxc3 {[%emt 0:00:15]} 22. Ba3 {[%emt 0:00:04]} Qb6 {[%emt 0:05:12]} 23. Ne5 {[%emt 0:08:38]} Nxe5 {[%emt 0:04:37]} 24. fxe5 {[%emt 0:00:06]} Nd7 {[%emt 0:00:25]} 25. Raa1 {[%emt 0:02:59]} d4 {[%emt 0:05:18]} 26. Rxf8+ {[%emt 0:05:00]} Rxf8 {[%emt 0:01:22]} 27. Re1 {[%emt 0:01:46]} a5 {[%emt 0:01:47]} 28. Bxb7 {[%emt 0:06:57]} Qxb7 {[%emt 0:00:11]} 29. Qg2 {[%emt 0:00:05]} Qc7 {[%emt 0:02:24]} 30. Qe4 {[%emt 0:00:54]} Nb6 {[%emt 0:03:15]} 31. Rf1 {[%emt 0:06:01]} Rxf1+ {[%emt 0:01:10]} 32. Kxf1 {[%emt 0:00:01]} Nd5 {[%emt 0:00:13]} 33. Bc1 {[%emt 0:00:00]} Nb6 {[%emt 0:00:47]} 34. Ba3 {[%emt 0:01:00]} Nd5 {[%emt 0:00:13]} 35. Bc1 {[%emt 0:01:03]} Qe7 {[%emt 0:05:31]} 36. Ke2 {[%emt 0:00:28]} Qh4 {[%emt 0:03:25]} 37. Qf3 {[%emt 0:00:05]} h6 {[%emt 0:01:34]} 38. Kd1 {[%emt 0:00:29]} Ne7 {[%emt 0:02:34]} 39. Qa8+ {[%emt 0:00:58]} Kh7 {[%emt 0:00:40]} 40. Qf3 {[%emt 0:00:43]} Ng6 {[%emt 0:00:38]} 41. Bf4 {[%emt 0:30:36]} Nxf4 {[%emt 0:32:08]} 42. Qxf4 {[%emt 0:00:02]} Qxh3 {[%emt 0:00:14]} 43. Qe4+ {[%emt 0:00:00]} Kg8 {[%emt 0:00:00]} 44. Ke1 {[%emt 0:00:00]} Kf7 {[%emt 0:00:00]} 45. Kf2 {[%emt 0:00:00]} Qh2+ {[%emt 0:00:00]} 46. Kf3 {[%emt 0:00:00]} Qh1+ {[%emt 0:00:00]} 47. Ke2 {[%emt 0:00:00]} Qxe4+ {[%emt 0:00:00]} 48. dxe4 {[%emt 0:00:00]} g6 {[%emt 0:00:00]} 0-1

[Event "WYCC U14 Open 2019"]
[Site "Mumbai"]
[Date "2019.10.06"]
[Round "6.13"]
[White "Murzin, Volodar"]
[Black "Fardet, Elouan"]
[Result "1-0"]
[ECO "A48"]
[WhiteElo "2433"]
[BlackElo "2010"]
[Annotator "ChessBase"]
[PlyCount "79"]
[EventDate "2019.10.02"]
[EventType "swiss"]
[EventCountry "IND"]
[SourceTitle "playchess.com"]
[Source "ChessBase"]
[SourceQuality "1"]
[TimeControl "40/5400+30:1800+30"]

1. d4 {[%emt 0:00:00]} Nf6 {[%emt 0:00:00]} 2. Nf3 {[%emt 0:00:00]} g6 {[%emt 0:00:00]} 3. Bg5 {[%emt 0:00:00]} Bg7 {[%emt 0:00:00]} 4. c3 {[%emt 0:00:05]} O-O {[%emt 0:00:20]} 5. Nbd2 {[%emt 0:00:05]} d5 {[%emt 0:05:11]} 6. e3 {[%emt 0:00:16]} b6 {[%emt 0:05:55]} 7. Be2 {[%emt 0:01:52]} Bb7 {[%emt 0:00:30]} 8. O-O {[%emt 0:00:12]} c5 {[%emt 0:03:29]} 9. a4 {[%emt 0:02:28]} Nc6 {[%emt 0:03:16]} 10. Re1 {[%emt 0:03:22]} h6 {[%emt 0:04:09]} 11. Bh4 {[%emt 0:00:28]} g5 {[%emt 0:02:08]} 12. Bg3 {[%emt 0:00:09]} Nh5 {[%emt 0:00:07]} 13. Bd3 {[%emt 0:01:31]} Nxg3 {[%emt 0:00:45]} 14. hxg3 {[%emt 0:00:18]} e5 {[%emt 0:02:21]} 15. dxe5 {[%emt 0:01:15]} Nxe5 {[%emt 0:00:53]} 16. Nxe5 {[%emt 0:00:17]} Bxe5 {[%emt 0:00:05]} 17. Qf3 {[%emt 0:06:49]} Qd7 {[%emt 0:11:11]} 18. Bf5 {[%emt 0:10:32]} Qe7 {[%emt 0:03:04]} 19. Qg4 {[%emt 0:04:17]} Bg7 {[%emt 0:14:51]} 20. e4 {[%emt 0:09:12]} dxe4 {[%emt 0:03:19]} 21. Bxe4 {[%emt 0:11:54]} Bxe4 {[%emt 0:01:23]} 22. Rxe4 {[%emt 0:00:23]} Qd8 {[%emt 0:06:12]} 23. Qe2 {[%emt 0:02:37]} Re8 {[%emt 0:07:55]} 24. a5 {[%emt 0:10:11]} Qd7 {[%emt 0:10:38]} 25. Re1 {[%emt 0:08:02]} Kf8 {[%emt 0:03:54]} 26. axb6 {[%emt 0:01:25]} axb6 {[%emt 0:00:45]} 27. Rxe8+ {[%emt 0:03:38]} Rxe8 {[%emt 0:00:13]} 28. Qxe8+ {[%emt 0:00:05]} Qxe8 {[%emt 0:00:05]} 29. Rxe8+ {[%emt 0:00:03]} Kxe8 {[%emt 0:00:04]} 30. Nc4 {[%emt 0:00:03]} Kd7 {[%emt 0:01:17]} 31. Nxb6+ {[%emt 0:00:07]} Kc6 {[%emt 0:00:05]} 32. Nc4 {[%emt 0:00:07]} Kd5 {[%emt 0:02:03]} 33. Nd2 {[%emt 0:00:19]} g4 {[%emt 0:01:51]} 34. Kf1 {[%emt 0:02:13]} h5 {[%emt 0:01:28]} 35. Ke2 {[%emt 0:00:33]} c4 {[%emt 0:00:58]} 36. Nf1 {[%emt 0:01:48]} Bh6 {[%emt 0:03:12]} 37. Ne3+ {[%emt 0:00:29]} Kc5 {[%emt 0:00:08]} 38. f3 {[%emt 0:01:50]} Kb5 {[%emt 0:01:31]} 39. f4 {[%emt 0:04:32]} Bf8 {[%emt 0:02:06]} 40. Nd5 {[%emt 0:09:25]} 1-0

[Event "WYCC U14 Open 2019"]
[Site "Mumbai"]
[Date "2019.10.06"]
[Round "6.14"]
[White "Wu, Logan"]
[Black "Arhan Chethan Anand"]
[Result "1-0"]
[ECO "C95"]
[WhiteElo "1994"]
[BlackElo "2167"]
[Annotator "ChessBase"]
[PlyCount "63"]
[EventDate "2019.10.02"]
[EventType "swiss"]
[EventCountry "IND"]
[SourceTitle "playchess.com"]
[Source "ChessBase"]
[SourceQuality "1"]
[TimeControl "40/5400+30:1800+30"]

1. e4 {[%emt 0:00:00]} e5 {[%emt 0:00:00]} 2. Nf3 {[%emt 0:00:00]} Nc6 {[%emt 0:00:00]} 3. Bb5 {[%emt 0:00:00]} a6 {[%emt 0:00:00]} 4. Ba4 {[%emt 0:00:00]} Nf6 {[%emt 0:00:00]} 5. O-O {[%emt 0:00:00]} Be7 {[%emt 0:00:03]} 6. Re1 {[%emt 0:00:04]} b5 {[%emt 0:00:05]} 7. Bb3 {[%emt 0:00:03]} d6 {[%emt 0:00:05]} 8. c3 {[%emt 0:00:08]} O-O {[%emt 0:00:07]} 9. h3 {[%emt 0:00:03]} Nb8 {[%emt 0:00:07]} 10. d4 {[%emt 0:00:11]} Nbd7 {[%emt 0:00:05]} 11. Nbd2 {[%emt 0:00:06]} Bb7 {[%emt 0:00:06]} 12. Bc2 {[%emt 0:00:03]} Re8 {[%emt 0:00:07]} 13. Nf1 {[%emt 0:00:05]} Bf8 {[%emt 0:00:04]} 14. Ng3 {[%emt 0:00:05]} g6 {[%emt 0:00:05]} 15. a4 {[%emt 0:00:12]} c5 {[%emt 0:00:06]} 16. d5 {[%emt 0:00:07]} c4 {[%emt 0:00:05]} 17. Bg5 {[%emt 0:00:07]} h6 {[%emt 0:00:57]} 18. Be3 {[%emt 0:00:06]} Qc7 {[%emt 0:00:51]} 19. Qd2 {[%emt 0:00:34]} Kh7 {[%emt 0:00:14]} 20. Nh2 {[%emt 0:03:16]} Nc5 {[%emt 0:09:11]} 21. Rf1 {[%emt 0:03:49]} bxa4 {[%emt 0:10:25]} 22. f4 {[%emt 0:16:28]} Bg7 {[%emt 0:08:34]} 23. fxe5 {[%emt 0:10:36]} dxe5 {[%emt 0:05:57]} 24. Rf3 {[%emt 0:23:52]} Nb3 {[%emt 0:15:29]} 25. Bxb3 {[%emt 0:00:11]} axb3 {[%emt 0:00:06]} 26. Raf1 {[%emt 0:01:54]} Qd6 {[%emt 0:03:02]} 27. Rxf6 {[%emt 0:06:54]} Bxf6 {[%emt 0:00:15]} 28. Ng4 {[%emt 0:00:10]} Bg7 {[%emt 0:06:53]} 29. Bxh6 {[%emt 0:01:32]} Qf8 {[%emt 0:01:23]} 30. Bxg7 {[%emt 0:00:58]} Qxg7 {[%emt 0:00:09]} 31. Nf6+ {[%emt 0:00:05]} Kh8 {[%emt 0:00:05]} 32. Qg5 {[%emt 0:00:04]} 1-0

[Event "WYCC U14 Open 2019"]
[Site "Mumbai"]
[Date "2019.10.06"]
[Round "6.15"]
[White "Pham, Khoi"]
[Black "Kondakov, Adrian"]
[Result "1-0"]
[ECO "E71"]
[WhiteElo "2121"]
[BlackElo "1991"]
[Annotator "ChessBase"]
[PlyCount "139"]
[EventDate "2019.10.02"]
[EventType "swiss"]
[EventCountry "IND"]
[SourceTitle "playchess.com"]
[Source "ChessBase"]
[SourceQuality "1"]
[TimeControl "40/5400+30:1800+30"]

1. d4 {[%emt 0:00:00]} Nf6 {[%emt 0:00:00]} 2. c4 {[%emt 0:00:00]} g6 {[%emt 0:00:00]} 3. Nc3 {[%emt 0:00:00]} Bg7 {[%emt 0:00:00]} 4. e4 {[%emt 0:00:00]} d6 {[%emt 0:00:00]} 5. h3 {[%emt 0:00:10]} O-O {[%emt 0:00:11]} 6. Be3 {[%emt 0:00:10]} e5 {[%emt 0:01:01]} 7. d5 {[%emt 0:00:19]} Nh5 {[%emt 0:09:33]} 8. g3 {[%emt 0:10:01]} a5 {[%emt 0:11:49]} 9. Be2 {[%emt 0:01:59]} Nf6 {[%emt 0:00:24]} 10. g4 {[%emt 0:11:53]} Na6 {[%emt 0:01:04]} 11. Bd3 {[%emt 0:01:47]} Nd7 {[%emt 0:02:54]} 12. Nge2 {[%emt 0:04:49]} Ndc5 {[%emt 0:02:05]} 13. Bc2 {[%emt 0:04:41]} f5 {[%emt 0:30:50]} 14. gxf5 {[%emt 0:03:36]} gxf5 {[%emt 0:00:34]} 15. exf5 {[%emt 0:00:54]} Qh4 {[%emt 0:03:11]} 16. Ng3 {[%emt 0:21:18]} Qxc4 {[%emt 0:05:30]} 17. f6 {[%emt 0:11:51]} Rxf6 {[%emt 0:03:17]} 18. Nh5 {[%emt 0:02:06]} Rg6 {[%emt 0:00:00]} 19. Ng3 {[%emt 0:00:00]} Rf6 {[%emt 0:01:00]} 20. Nh5 {[%emt 0:01:00]} Rg6 {[%emt 0:01:41]} 21. Bxg6 {[%emt 0:04:31]} hxg6 {[%emt 0:00:05]} 22. Nxg7 {[%emt 0:00:31]} Kxg7 {[%emt 0:01:03]} 23. Qe2 {[%emt 0:05:54]} Nd3+ {[%emt 0:02:16]} 24. Kf1 {[%emt 0:01:52]} Nxb2 {[%emt 0:06:15]} 25. Qxc4 {[%emt 0:00:09]} Nxc4 {[%emt 0:00:03]} 26. Rc1 {[%emt 0:01:23]} Bf5 {[%emt 0:00:48]} 27. h4 {[%emt 0:01:49]} Rf8 {[%emt 0:01:52]} 28. Bg5 {[%emt 0:01:25]} Nc5 {[%emt 0:04:08]} 29. Ne2 {[%emt 0:02:57]} Na6 {[%emt 0:00:00]} 30. Nc3 {[%emt 0:00:00]} Nc5 {[%emt 0:01:00]} 31. Ne2 {[%emt 0:01:00]} Bd3 {[%emt 0:01:33]} 32. Rh3 {[%emt 0:00:43]} b5 {[%emt 0:00:45]} 33. a4 {[%emt 0:01:03]} Bf5 {[%emt 0:02:22]} 34. Rhc3 {[%emt 0:01:05]} Nxa4 {[%emt 0:01:31]} 35. Rb3 {[%emt 0:00:35]} Nab6 {[%emt 0:00:51]} 36. Rxb5 {[%emt 0:00:23]} Bd3 {[%emt 0:02:32]} 37. Rb3 {[%emt 0:01:41]} Rf3 {[%emt 0:01:25]} 38. Kg2 {[%emt 0:01:06]} e4 {[%emt 0:04:00]} 39. Nd4 {[%emt 0:00:30]} Rf7 {[%emt 0:00:04]} 40. Ne6+ {[%emt 0:01:07]} Kg8 {[%emt 0:00:50]} 41. Nf4 {[%emt 0:31:03]} a4 {[%emt 0:30:21]} 42. Rbc3 {[%emt 0:00:42]} Rxf4 {[%emt 0:00:46]} 43. Bxf4 {[%emt 0:00:07]} Nxd5 {[%emt 0:00:03]} 44. Rxc4 {[%emt 0:02:06]} Nxf4+ {[%emt 0:01:21]} 45. Kh2 {[%emt 0:00:00]} Bxc4 {[%emt 0:00:00]} 46. Rxc4 {[%emt 0:00:00]} d5 {[%emt 0:00:00]} 47. Rxc7 {[%emt 0:00:00]} Nd3 {[%emt 0:00:00]} 48. Kg3 {[%emt 0:00:00]} a3 {[%emt 0:00:00]} 49. Ra7 {[%emt 0:00:00]} Nc1 {[%emt 0:00:00]} 50. Rxa3 {[%emt 0:00:00]} Ne2+ {[%emt 0:00:00]} 51. Kg2 {[%emt 0:00:00]} d4 {[%emt 0:00:00]} 52. Kf1 {[%emt 0:00:00]} Nc3 {[%emt 0:00:00]} 53. Ra7 {[%emt 0:00:00]} Kf8 {[%emt 0:00:00]} 54. Ke1 {[%emt 0:00:00]} d3 {[%emt 0:00:42]} 55. Kd2 {[%emt 0:00:00]} Nd5 {[%emt 0:00:03]} 56. Ra4 {[%emt 0:01:34]} Nf6 {[%emt 0:00:17]} 57. f3 {[%emt 0:01:08]} exf3 {[%emt 0:00:04]} 58. Kxd3 {[%emt 0:00:32]} Kg7 {[%emt 0:00:05]} 59. Ke3 {[%emt 0:00:10]} Kh6 {[%emt 0:00:15]} 60. Kxf3 {[%emt 0:00:15]} g5 {[%emt 0:00:30]} 61. Ra6 {[%emt 0:00:45]} Kg6 {[%emt 0:01:17]} 62. h5+ {[%emt 0:00:59]} Kg7 {[%emt 0:03:24]} 63. h6+ {[%emt 0:00:35]} Kf7 {[%emt 0:00:02]} 64. Ke3 {[%emt 0:00:19]} Ng4+ {[%emt 0:00:56]} 65. Ke4 {[%emt 0:00:25]} Nf2+ {[%emt 0:00:38]} 66. Kf5 {[%emt 0:00:15]} Nh3 {[%emt 0:00:08]} 67. Ra7+ {[%emt 0:00:23]} Kg8 {[%emt 0:00:19]} 68. h7+ {[%emt 0:00:14]} Kh8 {[%emt 0:00:02]} 69. Kg6 {[%emt 0:00:08]} Nf4+ {[%emt 0:00:02]} 70. Kh6 {[%emt 0:00:08]} 1-0

[Event "WYCC U14 Open 2019"]
[Site "Mumbai"]
[Date "2019.10.06"]
[Round "6.16"]
[White "Ayush Sharma"]
[Black "Bochnicka, Vladimir"]
[Result "1-0"]
[ECO "C41"]
[WhiteElo "1939"]
[BlackElo "2087"]
[Annotator "NA"]
[PlyCount "83"]
[EventDate "2019.10.02"]
[EventType "swiss"]
[EventCountry "IND"]
[SourceTitle "playchess.com"]
[Source "ChessBase"]
[SourceQuality "1"]
[TimeControl "40/5400+30:1800+30"]

1. e4 {[%emt 0:00:20]} e5 {[%emt 0:00:00]} 2. Nf3 {[%emt 0:00:17]} d6 {[%emt 0:00:00]} 3. d4 {[%emt 0:00:13]} exd4 {[%emt 0:00:00]} 4. Nxd4 {[%emt 0:00:06]} Nf6 {[%emt 0:00:04]} 5. Nc3 {[%emt 0:00:08]} Be7 {[%emt 0:00:09]} 6. Bc4 {[%emt 0:01:14]} O-O {[%emt 0:00:19]} 7. O-O {[%emt 0:00:31]} Re8 {[%emt 0:00:36]} 8. Re1 {[%emt 0:11:23]} c6 {[%emt 0:01:28]} 9. Bg5 {[%emt 0:06:18]} h6 {[%emt 0:11:31]} 10. Bh4 {[%emt 0:04:57]} Qc7 {[%emt 0:11:46]} 11. a4 {[%emt 0:20:44]} a5 {[%emt 0:02:05]} 12. f4 {[%emt 0:03:37]} d5 {[%emt 0:24:45]} 13. exd5 {[%emt 0:01:29]} Rd8 {[%emt 0:01:15]} 14. Bb3 {[%emt 0:24:38]} cxd5 {[%emt 0:19:57]} 15. Bxf6 {[%emt 0:05:34]} Bxf6 {[%emt 0:00:30]} 16. Nxd5 $18 {[%emt 0:00:04]} Rxd5 {[%emt 0:12:20]} 17. Bxd5 {[%emt 0:00:28]} Qc5 {[%emt 0:00:13]} 18. Re8+ {[%emt 0:00:21]} Kh7 {[%emt 0:00:05]} 19. Be4+ {[%emt 0:01:52]} g6 {[%emt 0:00:07]} 20. c3 {[%emt 0:00:05]} Bd7 {[%emt 0:01:46]} 21. Bxb7 {[%emt 0:02:17]} Ra7 {[%emt 0:00:48]} 22. Rxb8 {[%emt 0:00:10]} Qc7 {[%emt 0:02:00]} 23. Rf8 {[%emt 0:00:27]} Kg7 {[%emt 0:00:37]} 24. Rxf7+ {[%emt 0:01:14]} Kxf7 {[%emt 0:00:06]} 25. Bd5+ {[%emt 0:00:05]} Kg7 {[%emt 0:00:19]} 26. Qd2 {[%emt 0:01:04]} Ra6 {[%emt 0:01:33]} 27. Kh1 {[%emt 0:01:27]} Rd6 {[%emt 0:00:19]} 28. Nb5 {[%emt 0:00:24]} Bxb5 {[%emt 0:00:25]} 29. axb5 {[%emt 0:00:03]} Qc4 {[%emt 0:03:45]} 30. Bxc4 {[%emt 0:00:18]} Rxd2 {[%emt 0:00:02]} 31. Rb1 {[%emt 0:02:04]} a4 {[%emt 0:02:51]} 32. g3 {[%emt 0:02:09]} Kf8 {[%emt 0:00:31]} 33. Bf1 {[%emt 0:00:55]} Ke7 {[%emt 0:01:02]} 34. Bg2 {[%emt 0:00:12]} Kd8 {[%emt 0:01:25]} 35. b6 {[%emt 0:00:28]} Rd6 {[%emt 0:00:48]} 36. b7 {[%emt 0:00:05]} Rb6 {[%emt 0:00:16]} 37. h3 {[%emt 0:00:21]} Kc7 {[%emt 0:01:16]} 38. Ra1 {[%emt 0:00:07]} Rxb2 {[%emt 0:00:16]} 39. Rxa4 {[%emt 0:00:07]} g5 {[%emt 0:00:56]} 40. Rc4+ {[%emt 0:00:18]} Kb8 {[%emt 0:00:12]} 41. Rc8+ {[%emt 0:30:04]} Ka7 {[%emt 0:30:02]} 42. Ra8+ {[%emt 0:00:12]} 1-0